bitfinex/quotes_SOLUSD_20240727
["timestamp","ask_amount","ask_price","bid_price","bid_amount"]
[1722098078491,16.5113,182.84,182.76,1.09406654]
[1722098079891,16.5113,182.84,182.75,1.09421427]
[1722098080091,16.5113,182.84,182.72,1.09420952]
[1722098080506,5.4695,182.83,182.72,1.09420952]
[1722098080688,21.9806,182.84,182.72,1.09420952]
[1722098081013,21.9806,182.84,182.72,46.09420952]
[1722098081196,21.9806,182.84,182.73,20.0]
[1722098081398,21.9806,182.84,182.74,46.09422198]
[1722098082398,21.9806,182.84,182.75,1.09422179]
[1722098082827,16.5113,182.84,182.74,45.0]
[1722098083025,16.5113,182.84,182.75,1.09413831]
[1722098084486,16.5113,182.84,182.74,45.0]
[1722098085117,16.5113,182.84,182.74,46.09412677]
[1722098085813,16.5113,182.84,182.74,45.0]
[1722098086018,21.9805,182.84,182.74,45.0]
[1722098086196,16.5113,182.84,182.75,1.09416074]
[1722098089915,21.9806,182.84,182.75,1.09416074]
[1722098090123,5.4696,182.83,182.75,1.09416074]
[1722098090647,5.4698,182.82,182.74,45.0]
[1722098091219,5.4695,182.83,182.74,45.0]
[1722098091422,21.9806,182.84,182.74,45.0]
[1722098092024,21.9806,182.84,182.75,1.0942229]
[1722098093801,5.4696,182.83,182.74,45.0]
[1722098094535,5.4699,182.82,182.74,45.0]
[1722098094719,5.4696,182.83,182.74,45.0]
[1722098095648,16.5113,182.84,182.75,1.09422269]
[1722098096028,21.9806,182.84,182.75,1.09422269]
[1722098096734,5.4695,182.83,182.75,1.09422269]
[1722098097034,5.4695,182.83,182.74,45.0]
[1722098098433,6.83767898,182.82,182.74,45.0]
[1722098098937,5.4703,182.81,182.74,45.0]
[1722098099235,1.36796177,182.8,182.74,45.0]
[1722098099533,1.36796305,182.79,182.74,45.0]
[1722098100322,16.5113,182.84,182.74,45.0]
[1722098100522,16.5113,182.84,182.75,1.0942459]
[1722098100723,16.5113,182.84,182.74,45.0]
[1722098100934,21.9806,182.84,182.74,45.0]
[1722098101827,16.5113,182.84,182.75,1.09422229]
[1722098102333,5.4695,182.83,182.74,45.0]
[1722098103032,16.5113,182.84,182.75,1.09427381]
[1722098103434,16.5113,182.84,182.74,45.0]
[1722098106327,6.3866,182.86,182.75,1.09416798]
[1722098106525,6.3866,182.86,182.75,17.51406798]
[1722098106719,6.3866,182.86,182.76,65.0]
[1722098106921,16.391,182.88,182.77,1.26393548]
[1722098107131,16.391,182.88,182.78,0.17]
[1722098107621,16.391,182.88,182.77,0.17]
[1722098108140,5.4684,182.87,182.77,0.17]
[1722098108335,16.391,182.88,182.76,65.0]
[1722098108526,5.4691,182.85,182.76,45.0]
[1722098108729,27.23757265,182.87,182.76,45.0]
[1722098108730,32.70630313,182.87,182.76,45.0]
[1722098108933,5.4687,182.86,182.76,45.0]
[1722098109432,5.4689,182.85,182.76,45.0]
[1722098110331,5.4687,182.86,182.76,45.0]
[1722098110646,5.4699,182.82,182.7,21.3723]
[1722098110948,1.3679503,182.82,182.7,21.3723]
[1722098111150,7.00758804,182.83,182.7,21.3723]
[1722098111324,7.00778887,182.82,182.7,21.3723]
[1722098111641,7.00778887,182.82,182.7,15.2855]
[1722098111642,21.4269,182.81,182.7,15.2855]
[1722098111824,15.9568,182.81,182.7,15.2855]
[1722098112423,1.36800167,182.8,182.7,15.2855]
[1722098112642,1.36800543,182.79,182.7,15.2855]
[1722098113238,15.9568,182.81,182.7,15.2855]
[1722098113938,15.9568,182.81,182.71,45.0]
[1722098115534,1.36807236,182.8,182.71,45.0]
[1722098115737,17.32489829,182.81,182.71,45.0]
[1722098115930,17.32489829,182.81,182.71,46.09446866]
[1722098116531,17.32489829,182.81,182.71,45.0]
[1722098118636,15.9568,182.81,182.71,46.09448393]
[1722098118834,1.36809167,182.8,182.71,45.0]
[1722098119031,12.96,182.76,182.71,45.0]
[1722098119228,21.427,182.81,182.66,7.058801]
[1722098119229,14.32812433,182.75,182.66,7.058801]
[1722098119429,12.96,182.74,182.67,12.96]
[1722098119635,1.36833806,182.73,182.67,12.96]
[1722098120852,1.36833806,182.73,182.66,0.779201]
[1722098120853,1.36835238,182.72,182.66,0.779201]
[1722098121035,12.96,182.79,182.66,45.779201]
[1722098121036,11.9671,182.77,182.66,45.779201]
[1722098121347,1.36842167,182.76,182.66,0.779201]
[1722098122268,15.9568,182.75,182.66,0.779201]
[1722098122475,1.36851407,182.74,182.66,0.779201]
[1722098122969,1.36856615,182.73,182.66,0.779201]
[1722098124654,6.84116615,182.73,182.66,0.779201]
[1722098125065,5.813,182.72,182.66,0.779201]
[1722098125237,1.36877091,182.71,182.66,0.779201]
[1722098125438,1.3688069,182.7,182.66,0.779201]
[1722098126069,1.36880603,182.74,182.66,0.779201]
[1722098126237,1.36862187,182.73,182.66,0.779201]
[1722098126440,17.66541471,182.75,182.66,0.779201]
[1722098126648,15.9568,182.75,182.66,0.779201]
[1722098128443,6.4958,182.77,182.66,0.779201]
[1722098128657,6.4958,182.77,182.67,1.094638]
[1722098128949,6.4958,182.77,182.66,65.779201]
[1722098129363,11.9672,182.77,182.66,65.779201]
[1722098129866,6.4958,182.77,182.66,65.779201]
[1722098130074,7.8641487,182.77,182.66,65.779201]
[1722098131558,7.8641487,182.77,182.66,45.779201]
[1722098131760,6.4958,182.77,182.66,45.779201]
[1722098132172,7.86415136,182.77,182.66,45.779201]
[1722098132359,6.4958,182.77,182.66,45.779201]
[1722098133978,11.9672,182.77,182.66,45.779201]
[1722098134169,0.34,182.76,182.66,45.779201]
[1722098134368,1.36857575,182.75,182.66,45.779201]
[1722098134575,6.84047575,182.75,182.66,45.779201]
[1722098134965,0.34,182.74,182.66,0.779201]
[1722098135170,1.36870854,182.73,182.66,0.779201]
[1722098136384,4.87241765,182.72,182.66,0.779201]
[1722098136563,1.36880004,182.71,182.66,0.779201]
[1722098136765,1.36879704,182.7,182.66,0.779201]
[1722098140178,1.5388539,182.72,182.66,0.779201]
[1722098140382,16.7666,182.73,182.66,0.779201]
[1722098140383,18.1354539,182.73,182.66,0.779201]
[1722098140696,16.7666,182.73,182.66,0.779201]
[1722098141077,16.5966,182.73,182.66,0.779201]
[1722098142908,6.84072179,182.75,182.66,0.779201]
[1722098143088,12.97,182.72,182.66,0.779201]
[1722098143480,5.8122,182.74,182.66,0.779201]
[1722098143481,12.97,182.71,182.66,0.779201]
[1722098145274,5.4725,182.73,182.66,0.779201]
[1722098145482,12.97,182.7,182.66,0.779201]
[1722098145804,12.97,182.71,182.66,0.779201]
[1722098145981,12.97,182.72,182.66,0.779201]
[1722098146184,12.97,182.73,182.66,0.779201]
[1722098146380,0.34,182.74,182.66,0.779201]
[1722098146600,12.97,182.72,182.66,0.779201]
[1722098148780,12.97,182.72,182.66,46.87408454]
[1722098149098,12.97,182.73,182.66,59.84408454]
[1722098149296,12.97,182.73,182.66,58.749201]
[1722098149599,12.97,182.74,182.67,12.97]
[1722098150008,22.068,182.77,182.69,12.97]
[1722098150182,12.97,182.75,182.68,12.97]
[1722098150713,12.97,182.74,182.67,28.161]
[1722098152298,12.97,182.74,182.68,46.09475996]
[1722098152604,12.97,182.79,182.7,12.97]
[1722098152605,5.471,182.79,182.7,12.97]
[1722098152808,5.471,182.79,182.72,12.97]
[1722098152809,12.97,182.79,182.72,12.97]
[1722098153005,6.5327,182.81,182.74,12.97]
[1722098153006,12.97,182.81,182.74,12.97]
[1722098153412,12.97,182.81,182.73,12.97]
[1722098153706,12.97,182.79,182.73,12.97]
[1722098153909,12.97,182.79,182.72,12.97]
[1722098154083,12.97,182.78,182.71,57.97]
[1722098154783,12.97,182.78,182.71,12.97]
[1722098155095,12.97,182.77,182.7,12.97]
[1722098155291,12.97,182.76,182.69,12.97]
[1722098155475,12.97,182.76,182.67,28.161]
[1722098155476,12.97,182.74,182.67,28.161]
[1722098155681,12.97,182.73,182.67,15.191]
[1722098156099,12.97,182.75,182.68,12.97]
[1722098158490,12.97,182.74,182.68,12.97]
[1722098159406,12.97,182.76,182.69,12.97]
[1722098159714,6.5327,182.79,182.71,12.97]
[1722098159892,16.2464,182.82,182.72,46.09446243]
[1722098160202,253.2,182.91,182.72,46.09446243]
[1722098160203,12.97,182.85,182.78,12.97]
[1722098160385,6.5327,182.89,182.74,15.191]
[1722098160386,12.97,182.86,182.79,12.97]
[1722098160790,12.97,182.86,182.8,57.97]
[1722098160994,12.97,182.87,182.8,57.97]
[1722098161193,16.2464,182.92,182.8,45.0]
[1722098161414,11.9992,182.93,182.81,1.09379077]
[1722098161712,5.4663,182.94,182.81,7.15409077]
[1722098162005,1.36713698,182.95,182.82,45.0]
[1722098162006,5.4666,182.93,182.82,45.0]
[1722098162205,5.4666,182.93,182.83,1.09372952]
[1722098162514,1.36716562,182.93,182.82,45.0]
[1722098162688,1.36716562,182.92,182.82,45.0]
[1722098163908,5.4671,182.92,182.82,45.0]
[1722098164085,6.83437119,182.92,182.82,45.0]
[1722098164494,5.4672,182.91,182.82,45.0]
[1722098164695,5.4668,182.92,182.83,1.09381585]
[1722098164896,1.36726981,182.95,182.83,1.09381585]
[1722098165107,20.0,182.95,182.83,1.09381585]
[1722098165305,20.0,182.95,182.84,15.191]
[1722098165615,5.467,182.92,182.84,15.191]
[1722098166117,21.36696423,182.95,182.84,16.28472575]
[1722098166118,5.4662,182.94,182.84,16.28472575]
[1722098166293,5.4662,182.94,182.85,45.0]
[1722098166494,5.4666,182.93,182.85,45.0]
[1722098166695,1.36709953,182.92,182.85,45.0]
[1722098167206,5.4666,182.93,182.85,45.0]
[1722098167510,1.36710645,182.92,182.81,6.0603]
[1722098167707,1.36710645,182.92,182.82,45.0]
[1722098168210,6.83400645,182.92,182.82,45.0]
[1722098168409,1.36710645,182.92,182.82,45.0]
[1722098168613,5.4672,182.91,182.82,45.0]
[1722098168912,1.36727659,182.9,182.82,45.0]
[1722098169117,1.36727782,182.89,182.82,45.0]
[1722098170527,5.4678,182.89,182.8,15.191]
[1722098170693,5.4678,182.89,182.81,45.0]
[1722098171597,5.4681,182.88,182.77,6.2841]
[1722098171804,1.36752877,182.87,182.77,6.2841]
[1722098172688,1.36751741,182.92,182.77,7.37811393]
[1722098172892,0.34,182.91,182.78,45.0]
[1722098173234,27.17485364,182.91,182.79,1.09396291]
[1722098173406,5.4675,182.9,182.78,45.0]
[1722098173611,20.0,182.89,182.78,45.0]
[1722098174418,1.36738735,182.88,182.78,45.0]
[1722098174725,1.36742395,182.87,182.78,45.0]
[1722098175089,5.4676,182.9,182.78,45.0]
[1722098175292,6.8349955,182.9,182.78,45.0]
[1722098175497,1.36737354,182.89,182.78,45.0]
[1722098176413,6.83517354,182.89,182.78,45.0]
[1722098176812,5.4675,182.9,182.78,45.0]
[1722098177503,6.83521041,182.89,182.78,45.0]
[1722098178515,5.4681,182.88,182.78,45.0]
[1722098178719,6.83591104,182.87,182.77,6.2841]
[1722098178900,5.4681,182.88,182.77,6.2841]
[1722098179418,1.36754911,182.87,182.77,6.2841]
[1722098179824,6.83525814,182.89,182.77,6.2841]
[1722098180016,6.83525814,182.89,182.78,45.0]
[1722098181221,5.468,182.88,182.78,45.0]
[1722098181400,1.36748849,182.87,182.78,45.0]
[1722098182724,6.663,182.9,182.78,45.0]
[1722098182924,8.03040499,182.9,182.78,45.0]
[1722098183118,12.95,182.88,182.81,12.95]
[1722098184421,12.95,182.84,182.77,12.95]
[1722098184628,12.95,182.84,182.76,12.95]
[1722098185021,12.95,182.84,182.77,12.95]
[1722098185420,5.469,182.85,182.76,12.95]
[1722098185715,12.95,182.82,182.75,15.5888]
[1722098185917,12.95,182.81,182.75,15.5888]
[1722098186840,12.95,182.81,182.69,3.12472347]
[1722098186841,12.95,182.79,182.7,15.5888]
[1722098187006,12.95,182.79,182.73,12.95]
[1722098188031,1.53797405,182.86,182.73,12.95]
[1722098188032,12.95,182.8,182.73,12.95]
[1722098188406,12.95,182.8,182.74,12.95]
[1722098188810,12.95,182.8,182.73,12.95]
[1722098189227,1.36797405,182.86,182.7,68.48317371]
[1722098189523,12.95,182.82,182.71,45.34]
[1722098190424,12.95,182.82,182.71,46.43421611]
[1722098190726,12.95,182.83,182.71,46.43421611]
[1722098191101,20.3319,182.9,182.71,46.43421611]
[1722098191102,16.0911,182.94,182.79,12.95]
[1722098191311,12.95,182.99,182.9,12.95]
[1722098191609,35.0973,183.01,182.94,12.95]
[1722098191813,35.0973,183.01,182.92,1.0931972]
[1722098192030,12.95,183.0,182.92,1.0931972]
[1722098192218,12.95,183.0,182.93,12.95]
[1722098192724,12.95,182.99,182.92,14.0431972]
[1722098192944,22.1473,183.01,182.93,57.95]
[1722098193116,12.95,183.0,182.93,57.95]
[1722098193711,12.95,182.99,182.93,45.0]
[1722098193907,12.95,182.94,182.91,1.69600339]
[1722098194127,12.95,182.94,182.87,12.95]
[1722098194334,12.95,182.97,182.89,12.95]
[1722098194647,12.95,182.98,182.92,12.95]
[1722098194825,12.95,182.98,182.91,12.95]
[1722098195227,5.4644,183.0,182.9,2.78941775]
[1722098195415,20.0,182.99,182.9,1.69609612]
[1722098195613,20.0,182.99,182.91,1.09322433]
[1722098195816,20.0,182.99,182.9,1.69609612]
[1722098195817,5.4651,182.98,182.9,1.69609612]
[1722098196335,5.4653,182.97,182.9,1.69609612]
[1722098197043,5.4651,182.98,182.9,1.69609612]
[1722098197620,5.4654,182.97,182.9,1.69609612]
[1722098197832,1.36675475,182.98,182.84,6.4222]
[1722098198022,5.4654,182.97,182.85,47.79003251]
[1722098198333,5.4656,182.96,182.86,2.78990437]
[1722098198542,5.4659,182.95,182.87,1.69637436]
[1722098199036,5.4657,182.96,182.88,1.0935046]
[1722098199336,5.4654,182.97,182.88,1.0935046]
[1722098199939,51.3347,183.0,182.88,1.0935046]
[1722098200125,51.3347,183.0,182.89,1.69618885]
[1722098200307,5.4647,182.99,182.9,1.0932689]
[1722098201241,5.4653,182.97,182.89,1.69618885]
[1722098201440,5.4657,182.96,182.89,1.69618885]
[1722098202641,5.4659,182.95,182.89,1.69618885]
[1722098203321,5.4655,182.97,182.89,1.69618885]
[1722098203817,5.4657,182.96,182.89,1.69618885]
[1722098204012,1.36688781,182.99,182.89,1.69618885]
[1722098204245,51.3346,183.0,182.89,1.69618885]
[1722098204246,45.87,183.0,182.89,1.69618885]
[1722098204436,51.3345,183.0,182.89,46.69618885]
[1722098204749,6.83144582,182.99,182.89,46.69618885]
[1722098204931,20.0,182.98,182.89,46.69618885]
[1722098205841,21.36664543,182.98,182.89,1.69618885]
[1722098206019,5.466,182.95,182.89,1.69618885]
[1722098207363,5.4657,182.96,182.89,1.69618885]
[1722098207567,1.36664543,182.98,182.89,1.69618885]
[1722098207735,26.04,182.97,182.84,21.4444]
[1722098207927,5.4666,182.93,182.84,23.1410527]
[1722098208341,5.4663,182.94,182.84,23.1410527]
[1722098209465,5.4663,182.94,182.85,45.0]
[1722098211843,26.83352588,182.93,182.84,16.7188527]
[1722098212152,1.36714407,182.92,182.84,16.7188527]
[1722098212935,1.36714407,182.92,182.84,1.6966527]
[1722098213270,0.34,182.91,182.8,22.7632]
[1722098213430,1.36744225,182.9,182.8,22.7632]
[1722098213747,5.4683,182.87,182.76,6.2931]
[1722098214126,5.468,182.88,182.77,2.7913158]
[1722098214343,5.468,182.88,182.77,47.7913158]
[1722098214542,5.4683,182.87,182.77,1.69730251]
[1722098214750,6.83581871,182.87,182.77,1.69730251]
[1722098214952,7.00560762,182.88,182.77,1.69730251]
[1722098215134,7.00560762,182.88,182.77,2.7913886]
[1722098215531,1.53760762,182.88,182.77,2.7913886]
[1722098215848,5.4684,182.87,182.77,47.7913886]
[1722098216829,5.4684,182.87,182.77,46.69730251]
[1722098217034,5.4684,182.87,182.77,1.69730251]
[1722098217639,5.4687,182.86,182.77,1.69730251]
[1722098218548,5.4684,182.87,182.77,1.69730251]
[1722098220138,7.00570762,182.88,182.77,1.69730251]
[1722098220339,20.0,182.87,182.78,1.69720965]
[1722098220641,20.0,182.87,182.79,1.09396038]
[1722098220846,5.4675,182.9,182.8,1.09394985]
[1722098221050,1.36743731,182.91,182.81,1.09387436]
[1722098221263,1.36743731,182.91,182.78,1.69720965]
[1722098221566,1.36743731,182.91,182.78,46.69720965]
[1722098221866,1.36743731,182.91,182.79,1.09390241]
[1722098222069,1.36743731,182.91,182.79,2.79101921]
[1722098222238,5.4677,182.89,182.79,47.79101921]
[1722098222575,5.4677,182.89,182.8,1.09390155]
[1722098222744,20.34,182.88,182.79,1.6971168]
[1722098222939,1.36768831,182.87,182.79,1.6971168]
[1722098223137,34.0105,182.88,182.79,1.6971168]
[1722098223138,20.34,182.88,182.79,1.6971168]
[1722098223355,5.6382,182.88,182.79,1.6971168]
[1722098223561,25.4684,182.87,182.79,1.6971168]
[1722098223866,5.4684,182.87,182.79,1.6971168]
[1722098225360,5.4686,182.86,182.79,1.6971168]
[1722098225938,1.5374941,182.88,182.79,1.6971168]
[1722098226154,21.36748448,182.9,182.79,1.6971168]
[1722098226442,0.34,182.89,182.79,1.6971168]
[1722098226639,5.4678,182.89,182.79,1.6971168]
[1722098226871,16.4914,182.92,182.8,2.79086432]
[1722098227164,5.4672,182.91,182.81,7.99003113]
[1722098227366,5.4672,182.91,182.82,46.09378843]
[1722098227552,17.85863741,182.92,182.82,45.0]
[1722098227864,5.4687,182.86,182.81,1.69693113]
[1722098228559,5.469,182.85,182.76,6.2931]
[1722098228761,5.469,182.85,182.77,1.09404823]
[1722098229258,12.95,182.82,182.76,1.69739538]
[1722098229444,1.36791718,182.84,182.75,16.4701]
[1722098229645,12.95,182.86,182.79,12.95]
[1722098229847,12.95,182.87,182.79,12.95]
[1722098230044,12.95,182.87,182.8,12.95]
[1722098230264,12.95,182.91,182.84,12.95]
[1722098230774,12.95,182.91,182.84,14.0437388]
[1722098231761,5.4668,182.92,182.84,14.0437388]
[1722098232050,21.782,182.96,182.87,12.95]
[1722098232265,12.95,182.95,182.88,12.95]
[1722098232455,12.95,182.96,182.89,12.95]
[1722098232658,18.4159,182.96,182.89,12.95]
[1722098232949,18.4159,182.95,182.88,57.95]
[1722098233149,5.4659,182.95,182.88,45.0]
[1722098234366,5.4662,182.94,182.88,45.0]
[1722098234574,25.88,182.97,182.84,1.6966527]
[1722098234757,21.70701306,182.96,182.84,46.6966527]
[1722098234942,20.34,182.96,182.84,47.79026315]
[1722098235362,20.34,182.96,182.85,1.69655991]
[1722098235554,20.17,182.96,182.86,1.09354925]
[1722098235781,25.4659,182.95,182.86,2.79001638]
[1722098236065,5.4659,182.95,182.86,47.79001638]
[1722098236566,5.4659,182.95,182.87,1.09348664]
[1722098236865,5.4659,182.95,182.87,45.0]
[1722098237251,5.4651,182.98,182.88,1.09341824]
[1722098237567,2.04032566,183.0,182.88,2.78969984]
[1722098237751,5.465,182.98,182.89,1.69618885]
[1722098238364,22.6723,183.01,182.9,1.09333747]
[1722098238553,5.4653,182.97,182.89,46.69618885]
[1722098238757,5.4653,182.97,182.89,1.69618885]
[1722098239653,5.4651,182.98,182.89,1.69618885]
[1722098239864,5.4658,182.96,182.89,1.69618885]
[1722098240365,5.4654,182.97,182.9,1.09342981]
[1722098240872,5.4657,182.96,182.89,1.69618885]
[1722098241371,5.4653,182.97,182.9,1.09341881]
[1722098241780,5.4653,182.97,182.89,1.69618885]
[1722098242669,5.4653,182.97,182.9,1.09336582]
[1722098243573,5.4653,182.97,182.89,1.69618885]
[1722098243773,5.4657,182.96,182.89,1.69618885]
[1722098244473,5.466,182.95,182.89,1.69618885]
[1722098244871,5.4656,182.96,182.89,1.69618885]
[1722098245084,6.83241987,182.96,182.89,1.69618885]
[1722098245268,1.36681987,182.95,182.89,1.69618885]
[1722098245764,1.36681987,182.95,182.87,6.3128]
[1722098245765,26.05,182.99,182.87,6.3128]
[1722098245959,5.4662,182.94,182.83,15.2833]
[1722098246160,66.53696853,182.98,182.84,2.79022749]
[1722098246161,5.4669,182.92,182.84,2.79022749]
[1722098246369,25.88,182.96,182.84,2.79022749]
[1722098246558,1.36716007,182.94,182.84,2.79022749]
[1722098246759,5.8066,182.93,182.84,2.79022749]
[1722098246964,5.4663,182.94,182.84,2.79022749]
[1722098247261,0.34,182.95,182.84,2.79022749]
[1722098247464,20.17,182.95,182.84,47.79022749]
[1722098247780,5.4664,182.94,182.84,47.79022749]
[1722098248685,5.4664,182.94,182.84,46.6966527]
[1722098249268,1.36709691,182.93,182.84,46.6966527]
[1722098249664,1.36716162,182.92,182.84,46.6966527]
[1722098250575,1.36715987,182.94,182.84,46.6966527]
[1722098250790,0.34,182.93,182.84,46.6966527]
[1722098250968,1.36715949,182.92,182.84,46.6966527]
[1722098252490,6.83396017,182.92,182.84,1.6966527]
[1722098253896,5.8071,182.91,182.83,21.5961]
[1722098254184,1.36733934,182.9,182.83,21.5961]
[1722098254361,1.36733852,182.89,182.83,21.5961]
[1722098254568,5.4674,182.9,182.83,21.5961]
[1722098254784,1.36733901,182.89,182.83,21.5961]
[1722098254980,25.88,182.93,182.84,1.09386937]
[1722098255181,12.94,182.92,182.85,12.94]
[1722098255387,32.94,182.92,182.85,12.94]
[1722098255677,25.466,182.95,182.86,1.09372524]
[1722098255880,27.3202,183.02,182.86,14.03372524]
[1722098255881,12.94,182.93,182.86,14.03372524]
[1722098256075,5.4657,182.96,182.87,12.94]
[1722098256265,12.94,182.94,182.87,12.94]
[1722098257067,5.466,182.95,182.87,12.94]
[1722098257263,12.94,182.94,182.87,12.94]
[1722098257472,12.94,182.94,182.86,12.94]
[1722098257865,12.94,182.93,182.86,12.94]
[1722098258480,1.70701922,182.96,182.83,21.5961]
[1722098258481,0.34,182.96,182.87,14.03361592]
[1722098258679,12.94,182.97,182.89,12.94]
[1722098258987,12.94,182.98,182.91,28.4255]
[1722098262167,5.4643,183.01,182.92,14.0333117]
[1722098262367,18.4043,183.01,182.94,12.94]
[1722098263311,12.94,183.0,182.93,59.03314288]
[1722098263590,12.94,183.0,182.93,57.94]
[1722098264485,12.94,183.0,182.94,1.09310553]
[1722098264970,12.94,183.0,182.93,57.94]
[1722098265799,5.4643,183.01,182.93,57.94]
[1722098265971,12.94,183.0,182.94,1.09310472]
[1722098266472,12.94,183.01,182.94,14.03310472]
[1722098267894,5.4639,183.02,182.94,14.03310472]
[1722098268396,12.94,183.01,182.94,14.03310472]
[1722098268893,1.36637692,183.04,182.93,45.0]
[1722098268894,5.4633,183.04,182.95,59.03310038]
[1722098269099,12.94,183.03,182.96,14.03296163]
[1722098269406,49.2454,183.1,182.99,12.94]
[1722098269407,5.4626,183.07,182.99,12.94]
[1722098269568,21.937,183.1,182.99,28.4255]
[1722098269569,12.94,183.05,182.99,28.4255]
[1722098269772,12.94,183.05,182.99,15.4855]
[1722098269970,5.4627,183.06,182.99,15.4855]
[1722098269971,12.94,183.04,182.99,15.4855]
[1722098270776,12.94,183.03,182.99,15.4855]
[1722098271500,12.94,183.04,182.99,15.4855]
[1722098277311,12.94,183.05,182.99,15.4855]
[1722098277605,12.94,183.06,182.99,29.51829664]
[1722098278812,5.4621,183.08,183.0,45.0]
[1722098279111,12.94,183.06,183.0,45.0]
[1722098279736,12.94,183.06,183.01,1.09274004]
[1722098280198,12.94,183.06,183.0,45.0]
[1722098280505,12.94,183.05,183.0,45.0]
[1722098280713,12.94,183.05,183.01,1.09271955]
[1722098280909,12.94,183.05,183.0,45.0]
[1722098281596,12.94,183.04,182.99,15.4855]
[1722098281802,12.94,183.03,182.99,15.4855]
[1722098282737,12.94,183.02,182.96,1.6955399]
[1722098282909,5.463,183.05,182.96,1.6955399]
[1722098283102,12.94,183.02,182.96,14.6355399]
[1722098283302,12.94,183.01,182.96,1.6955399]
[1722098284118,12.94,183.01,182.96,2.78854851]
[1722098285322,12.94,183.01,182.96,1.6955399]
[1722098285500,12.94,182.98,182.95,15.9862]
[1722098285700,12.94,182.98,182.91,15.9862]
[1722098285904,12.94,182.97,182.91,15.9862]
[1722098286714,12.94,182.96,182.91,15.9862]
[1722098287204,1.36654345,183.01,182.91,15.9862]
[1722098287205,12.94,182.95,182.91,15.9862]
[1722098287924,12.94,182.96,182.89,6.5305]
[1722098288129,12.94,182.94,182.87,15.9862]
[1722098288417,12.94,182.94,182.87,28.9262]
[1722098288925,12.94,182.92,182.87,15.9862]
[1722098289132,1.36690396,182.93,182.87,15.9862]
[1722098289133,12.94,182.91,182.87,15.9862]
[1722098289433,5.4666,182.93,182.83,15.9862]
[1722098289645,5.6363,182.94,182.84,1.09370171]
[1722098289806,12.94,182.9,182.84,1.09370171]
[1722098290317,1.3671237,182.98,182.85,12.94]
[1722098290624,12.94,182.94,182.87,12.94]
[1722098290835,12.94,182.94,182.88,45.0]
[1722098292203,12.94,182.93,182.86,14.63646713]
[1722098292405,12.94,182.91,182.86,1.69646713]
[1722098294535,12.94,182.88,182.86,1.69646713]
[1722098294735,12.94,182.88,182.83,15.9862]
[1722098296131,12.94,182.87,182.83,15.9862]
[1722098296306,12.94,182.87,182.81,6.5305]
[1722098297114,5.4672,182.91,182.81,6.5305]
[1722098298127,5.4675,182.9,182.81,6.5305]
[1722098298729,5.4672,182.91,182.81,6.5305]
[1722098298924,5.4672,182.91,182.82,1.09384818]
[1722098299316,5.4672,182.91,182.81,6.5305]
[1722098302943,1.707295,182.92,182.81,6.5305]
[1722098303134,1.707295,182.92,182.82,1.09384374]
[1722098303434,27.174195,182.92,182.82,1.09384374]
[1722098303617,5.4672,182.91,182.81,6.5305]
[1722098304245,5.4672,182.91,182.82,1.09384358]
[1722098305044,5.4672,182.91,182.81,6.5305]
[1722098306045,5.4672,182.91,182.81,6.0305]
[1722098311871,21.707295,182.92,182.81,6.0305]
[1722098311872,27.174195,182.92,182.81,6.0305]
[1722098312166,27.174095,182.92,182.81,6.0305]
[1722098312862,5.4671,182.91,182.81,6.0305]